fUSD/lending_fUSD_20240403
["ID","MTS","AMOUNT","RATE_DAILY","PERIOD"]
[321418821,1712177928640,-2215.56,0.00054794,120]
[321418822,1712177928665,-429.48758441,0.00054794,120]
[321418823,1712177928691,-500.0,0.00054794,120]
[321418824,1712177928720,-500.0,0.00054794,120]
[321418825,1712177928750,-500.0,0.00054794,120]
[321418826,1712177928779,-500.0,0.00054794,120]
[321418827,1712177928807,-813.32,0.00054794,120]
[321418828,1712177928838,-512.32267161,0.00054794,120]
[321418829,1712177928868,-500.0,0.00054794,120]
[321418830,1712177928900,-500.0,0.00054794,120]
[321418831,1712177928929,-500.0,0.00054794,120]
[321418832,1712177928959,-500.0,0.00054794,120]
[321418833,1712177928988,-1149.47,0.00054794,120]
[321418834,1712177929012,-500.0,0.00054794,120]
[321418835,1712177929037,-500.0,0.00054794,120]
[321418836,1712177929062,-500.0,0.00054794,120]
[321418837,1712177929088,-500.0,0.00054794,120]
[321418838,1712177929114,-500.0,0.00054794,120]
[321418839,1712177929139,-500.0,0.00054794,120]
[321418840,1712177929166,-682.64,0.00054794,120]
[321418841,1712177929191,-500.0,0.00054794,120]
[321418842,1712177929229,-500.0,0.00054794,120]
[321418843,1712177929258,-500.0,0.00054794,120]
[321418844,1712177929288,-500.0,0.00054794,120]
[321418845,1712177929316,-234.53035963,0.00054794,120]
[321418846,1712177929347,-500.0,0.00054794,120]
[321418847,1712177929375,-500.0,0.00054794,120]
[321418848,1712177929403,-570.91680593,0.00054794,120]
[321418849,1712177929430,-500.0,0.00054794,120]
[321418850,1712177929459,-507.79816334,0.00054794,120]
[321418851,1712177929488,-500.0,0.00054794,120]
[321418852,1712177929515,-1275.01,0.00054794,120]
[321418853,1712177929782,-503.90686109,0.00054794,120]
[321418854,1712177929812,-500.0,0.00054794,120]
[321418855,1712177929840,-500.0,0.00054794,120]
[321418856,1712177929868,-500.0,0.00054794,120]
[321418857,1712177929895,-500.0,0.00054794,120]
[321418858,1712177929921,-500.0,0.00054794,120]
[321418859,1712177929947,-500.0,0.00054794,120]
[321418860,1712177929972,-500.0,0.00054794,120]
[321418861,1712177929998,-500.0,0.00054794,120]
[321418862,1712177930024,-500.0,0.00054794,120]
[321418863,1712177930049,-500.0,0.00054794,120]
[321418864,1712177930076,-500.0,0.00054794,120]
[321418865,1712177930101,-500.0,0.00054794,120]
[321418866,1712177930127,-500.0,0.00054794,120]
[321418867,1712177930153,-500.0,0.00054794,120]
[321418868,1712177930184,-500.0,0.00054794,120]
[321418869,1712177930210,-150.0,0.00054794,120]
[321418870,1712177930238,-500.0,0.00054794,120]
[321418871,1712177930264,-648.51130207,0.00054794,120]
[321418872,1712177930294,-3402.49,0.00054794,120]
[321418873,1712177930322,-945.74,0.00054794,120]
[321418874,1712177930349,-500.0,0.00054794,120]
[321418875,1712177930376,-500.0,0.00054794,120]
[321418876,1712177930403,-500.0,0.00054794,120]
[321418877,1712177930432,-500.0,0.00054794,120]
[321418878,1712177930461,-500.0,0.00054794,120]
[321418879,1712177930489,-500.0,0.00054794,120]
[321418880,1712177930518,-500.0,0.00054794,120]
[321418881,1712177930545,-500.0,0.00054794,120]
[321418882,1712177930571,-569.97,0.00054794,120]
[321418883,1712177930600,-500.0,0.00054794,120]
[321418884,1712177930627,-500.0,0.00054794,120]
[321418885,1712177930655,-500.0,0.00054794,120]
[321418886,1712177930682,-500.0,0.00054794,120]
[321418887,1712177930713,-5029.26323018,0.00054794,120]
[321418888,1712177930740,-505.95877875,0.00054794,120]
[321418889,1712177930770,-1000.0,0.00054794,120]
[321418890,1712177930797,-503.5870309,0.00054794,120]
[321418891,1712177930825,-500.0,0.00054794,120]
[321418892,1712177930852,-500.0,0.00054794,120]
[321418893,1712177930878,-750.05,0.00054794,120]
[321418894,1712177930904,-500.0,0.00054794,120]
[321418895,1712177930931,-500.0,0.00054794,120]
[321418896,1712177930959,-500.0,0.00054794,120]
[321418897,1712177930986,-500.0,0.00054794,120]
[321418898,1712177931014,-500.0,0.00054794,120]
[321418899,1712177931041,-752.89,0.00054794,120]
[321418900,1712177931068,-500.0,0.00054794,120]
[321418901,1712177931097,-505.15470122,0.00054794,120]
[321418902,1712177931123,-500.0,0.00054794,120]
[321418903,1712177931152,-671.86,0.00054794,120]
[321418904,1712177931180,-500.0,0.00054794,120]
[321418905,1712177931208,-500.0,0.00054794,120]
[321418906,1712177931235,-500.0,0.00054794,120]
[321418907,1712177931262,-1170.6,0.00054794,120]
[321418908,1712177931292,-790.28,0.00054794,120]
[321418909,1712177931319,-502.37099176,0.00054794,120]
[321418910,1712177931346,-500.0,0.00054794,120]
[321418911,1712177931374,-1746.74,0.00054794,120]
[321418912,1712177931402,-500.0,0.00054794,120]
[321418913,1712177931429,-500.0,0.00054794,120]
[321418914,1712177931457,-500.0,0.00054794,120]
[321418915,1712177931483,-500.0,0.00054794,120]
[321418916,1712177931510,-500.0,0.00054794,120]
[321418917,1712177931536,-833.85,0.00054794,120]
[321418918,1712177931563,-500.0,0.00054794,120]
[321418919,1712177931595,-701.57,0.00054794,120]
[321418920,1712177931623,-500.0,0.00054794,120]
[321418921,1712177931652,-500.0,0.00054794,120]
[321418922,1712177931680,-500.0,0.00054794,120]
[321418923,1712177931709,-500.0,0.00054794,120]
[321418924,1712177931735,-500.0,0.00054794,120]
[321418925,1712177931762,-503.01381616,0.00054794,120]
[321418926,1712177931788,-567.45,0.00054794,120]
[321418927,1712177931814,-500.0,0.00054794,120]
[321418928,1712177931840,-500.0,0.00054794,120]
[321418929,1712177931866,-500.0,0.00054794,120]
[321418930,1712177931891,-500.0,0.00054794,120]
[321418931,1712177931919,-512.16,0.00054794,120]
[321418932,1712177931947,-990.81,0.00054794,120]
[321418933,1712177931974,-500.0,0.00054794,120]
[321418934,1712177932000,-500.0,0.00054794,120]
[321418935,1712177932026,-504.15147546,0.00054794,120]
[321418936,1712177932051,-500.0,0.00054794,120]
[321418937,1712177932077,-559.74,0.00054794,120]
[321418938,1712177932104,-1909.24,0.00054794,120]
[321418939,1712177932177,-502.03347917,0.00054794,120]
[321418940,1712177932205,-500.0,0.00054794,120]
[321418941,1712177932232,-521.85467095,0.00054794,120]
[321418942,1712177932259,-553.5,0.00054794,120]
[321418943,1712177932290,-1788.78,0.00054794,120]
[321418944,1712177932315,-503.08983357,0.00054794,120]
[321418945,1712177932343,-523.30010332,0.00054794,120]
[321418946,1712177932369,-506.17338091,0.00054794,120]
[321418947,1712177932395,-380.80550965,0.00054794,120]
[321418948,1712177932423,-500.0,0.00054794,120]
[321418949,1712177932450,-500.0,0.00054794,120]
[321418950,1712177932478,-500.0,0.00054794,120]
[321418951,1712177932504,-1268.28,0.00054794,120]
[321418952,1712177932531,-500.0,0.00054794,120]
[321418953,1712177932556,-500.0,0.00054794,120]
[321418954,1712177932583,-512.57048255,0.00054794,120]
[321418955,1712177932610,-500.0,0.00054794,120]
[321418956,1712177932637,-504.97131546,0.00054794,120]
[321418957,1712177932665,-500.0,0.00054794,120]
[321418958,1712177932694,-2064.79,0.00054794,120]
[321418959,1712177932904,-500.0,0.00054794,120]
[321418960,1712177932935,-500.0,0.00054794,120]
[321418961,1712177932965,-513.82404215,0.00054794,120]
[321418962,1712177932994,-500.0,0.00054794,120]
[321418963,1712177933023,-929.03,0.00054794,120]
[321418964,1712177933049,-2568.53,0.00054794,120]
[321418965,1712177933078,-2071.3,0.00054794,120]
[321418966,1712177933109,-510.76,0.00054794,120]
[321418967,1712177933136,-500.0,0.00054794,120]
[321418968,1712177933164,-500.0,0.00054794,120]
[321418969,1712177933193,-533.89948382,0.00054794,120]
[321418970,1712177933223,-510.79329484,0.00054794,120]
[321418971,1712177933251,-500.0,0.00054794,120]
[321418972,1712177933278,-500.0,0.00054794,120]
[321418973,1712177933309,-500.0,0.00054794,120]
[321418974,1712177933341,-981.54,0.00054794,120]
[321418975,1712177933372,-510.36156753,0.00054794,120]
[321418976,1712177933402,-1027.49,0.00054794,120]
[321418977,1712177933429,-500.0,0.00054794,120]
[321418978,1712177933455,-500.0,0.00054794,120]
[321418979,1712177933484,-903.63,0.00054794,120]
[321418980,1712177933511,-314.24049412,0.00054794,120]
[321418981,1712177933537,-500.0,0.00054794,120]
[321418982,1712177933564,-1249.08,0.00054794,120]
[321418983,1712177933592,-500.0,0.00054794,120]
[321418984,1712177933621,-500.0,0.00054794,120]
[321418985,1712177933651,-500.0,0.00054794,120]
[321418986,1712177933679,-500.0,0.00054794,120]
[321418987,1712177933708,-1139.69,0.00054794,120]
[321418988,1712177933736,-544.90672283,0.00054794,120]
[321418989,1712177933764,-500.0,0.00054794,120]
[321418990,1712177933793,-673.37,0.00054794,120]
[321418991,1712177933820,-500.0,0.00054794,120]
[321418992,1712177933848,-500.0,0.00054794,120]
[321418993,1712177933878,-500.0,0.00054794,120]
[321418994,1712177933906,-500.0,0.00054794,120]
[321418995,1712177933936,-652.17,0.00054794,120]
[321418996,1712177933965,-1220.93,0.00054794,120]
[321418997,1712177933993,-500.0,0.00054794,120]
[321418998,1712177934019,-500.0,0.00054794,120]
[321418999,1712177934045,-500.0,0.00054794,120]
[321419000,1712177934073,-500.0,0.00054794,120]
[321419001,1712177934101,-500.61440784,0.00054794,120]
[321419002,1712177934127,-500.0,0.00054794,120]
[321419003,1712177934153,-500.0,0.00054794,120]
[321419004,1712177934180,-500.0,0.00054794,120]
[321419005,1712177934207,-496.03680517,0.00054794,120]
[321419006,1712177934235,-506.86763661,0.00054794,120]
[321419007,1712177934262,-1273.65,0.00054794,120]
[321419008,1712177934290,-500.0,0.00054794,120]
[321419009,1712177934318,-500.0,0.00054794,120]
[321419010,1712177934347,-1764.97,0.00054794,120]
[321419011,1712177934374,-1083.16,0.00054794,120]
[321419012,1712177934401,-500.0,0.00054794,120]
[321419013,1712177934427,-513.37179375,0.00054794,120]
[321419014,1712177934454,-500.0,0.00054794,120]
[321419015,1712177934483,-500.0,0.00054794,120]
[321419016,1712177934509,-3000.0,0.00054794,120]
[321419017,1712177934536,-1273.25,0.00054794,120]
[321419018,1712177934562,-500.0,0.00054794,120]
[321419019,1712177934587,-500.0,0.00054794,120]
[321419020,1712177934612,-268.70438512,0.00054794,120]
[321419021,1712177934639,-500.0,0.00054794,120]
[321419022,1712177934665,-500.0,0.00054794,120]
[321419023,1712177934692,-500.0,0.00054794,120]
[321419024,1712177934720,-500.0,0.00054794,120]
[321419025,1712177934747,-500.0,0.00054794,120]
[321419026,1712177934774,-574.24,0.00054794,120]
[321419027,1712177934801,-500.0,0.00054794,120]
[321419028,1712177934828,-500.0,0.00054794,120]
[321419029,1712177934856,-500.0,0.00054794,120]
[321419030,1712177934895,-954.86,0.00054794,120]
[321419031,1712177934926,-1627.36,0.00054794,120]
[321419032,1712177934955,-870.04,0.00054794,120]
[321419033,1712177934985,-500.0,0.00054794,120]
[321419034,1712177935013,-502.66952816,0.00054794,120]
[321419035,1712177935041,-428.00812171,0.00054794,120]
[321419036,1712177935067,-1373.63,0.00054794,120]
[321419037,1712177935095,-500.0,0.00054794,120]
[321419038,1712177935121,-502.00841153,0.00054794,120]
[321419039,1712177935151,-500.0,0.00054794,120]
[321419040,1712177935180,-500.0,0.00054794,120]
[321419041,1712177935208,-500.0,0.00054794,120]
[321419042,1712177935235,-500.0,0.00054794,120]
[321419043,1712177935263,-500.0,0.00054794,120]
[321419044,1712177935293,-99.13719148,0.00054794,120]
[321419045,1712177939704,683.29606825,0.0002,2]
[321419046,1712178100261,171.15,0.00016712,2]
[321419047,1712178224864,927.51,0.00038904,120]
[321419048,1712178228629,167.01357354,0.00040073,33]
[321419050,1712178323836,600.0,0.0004,120]
[321419051,1712178355338,806.0,0.00040131,30]
[321419052,1712178416858,566.51,0.00019434,2]
[321419053,1712178458147,150.0,0.00040131,30]
[321419054,1712178458672,150.0,0.00040131,30]
[321419055,1712178459401,228.82,0.00040131,30]
[321419056,1712178460432,936.0,0.00040131,120]
[321419057,1712178463746,161.0,0.00040131,30]
[321419058,1712178508385,150.0,0.00040131,30]
[321419062,1712178547150,-451.1818864,0.00021235,2]
[321419063,1712178547177,-6234.14681643,0.00021235,2]
[321419064,1712178557097,-2557.58933444,0.00021234,2]
[321419065,1712178563409,186.6269854,0.00040131,60]
[321419075,1712178631743,-299.99,0.00021232,2]
[321419076,1712178631801,-155.07134325,0.00021232,2]
[321419077,1712178631811,-1289.54111803,0.00021233,2]
[321419078,1712178631820,-20182.54183417,0.00021234,2]
[321419079,1712178631830,-191.63087499,0.00021263,2]
[321419080,1712178631839,-430.21,0.00021344,2]
[321419081,1712178631848,-1332.19,0.00021373,2]
[321419082,1712178631857,-316.24,0.00021376,2]
[321419084,1712178631866,-950.58992929,0.00021491,2]
[321419086,1712178631875,-154.93,0.00021528,2]
[321419087,1712178631885,-566.51,0.00021698,2]
[321419088,1712178631894,-407.09296923,0.00021943,2]
[321419089,1712178631903,-1725.75855417,0.0002212,2]
[321419090,1712178631913,-2281.92,0.00022233,2]
[321419091,1712178631922,-2281.92,0.00022239,2]
[321419092,1712178631931,-2281.92,0.00022245,2]
[321419093,1712178631940,-2281.92,0.00022251,2]
[321419094,1712178631950,-2281.92,0.00022257,2]
[321419095,1712178631959,-2281.92,0.00022263,2]
[321419096,1712178631969,-2281.92,0.00022268,2]
[321419097,1712178631978,-2281.92,0.00022274,2]
[321419098,1712178631988,-2281.92,0.0002228,2]
[321419099,1712178631997,-2281.92,0.00022286,2]
[321419100,1712178632007,-2281.92,0.00022292,2]
[321419101,1712178632016,-2281.92,0.00022298,2]
[321419102,1712178632025,-2281.92,0.00022304,2]
[321419103,1712178632036,-2281.92,0.00022309,2]
[321419104,1712178632045,-2281.92,0.00022315,2]
[321419105,1712178632054,-2281.92,0.00022321,2]
[321419106,1712178632063,-2281.92,0.00022327,2]
[321419107,1712178632071,-2281.92,0.00022333,2]
[321419108,1712178632080,-2281.92,0.00022339,2]
[321419109,1712178632090,-2281.92,0.00022345,2]
[321419110,1712178632099,-569.79,0.00022417,2]
[321419111,1712178632110,-458.96180652,0.00022422,2]
[321419112,1712178632119,-162.33,0.00022508,2]
[321419113,1712178632130,-26597.6329,0.00022522,2]
[321419114,1712178632140,-4178.9773,0.00022522,2]
[321419115,1712178632150,-3817.2553,0.00022522,2]
[321419116,1712178632160,-3689.6838,0.00022522,2]
[321419117,1712178632170,-36113.2183,0.00022522,2]
[321419118,1712178632180,-2500.0,0.00022522,2]
[321419119,1712178632189,-169.15,0.00022612,2]
[321419120,1712178632200,-251.93740064,0.0002262,2]
[321419121,1712178632210,-4316.65932501,0.0002262,2]
[321419122,1712178632219,-278.70383956,0.0002262,2]
[321419123,1712178632228,-262.83183104,0.0002262,2]
[321419124,1712178632238,-316.06410991,0.0002262,2]
[321419125,1712178632248,-500.0,0.0002262,2]
[321419126,1712178632258,-155.34283485,0.0002262,2]
[321419127,1712178632267,-164.51780944,0.0002262,2]
[321419128,1712178632277,-450.22817949,0.00022621,2]
[321419129,1712178632289,-266.49675638,0.00022621,2]
[321419130,1712178632299,-1896.63167934,0.00022621,2]
[321419131,1712178632308,-266.5494051,0.00022621,2]
[321419132,1712178632318,-322.73789507,0.00022622,2]
[321419134,1712178632327,-291.74027277,0.00022622,2]
[321419136,1712178632336,-243582.40197038,0.00022622,2]
[321419183,1712178637539,-358.24515136,0.00022522,2]
[321419184,1712178637552,-385.46114864,0.00022522,2]
[321419185,1712178637562,-23.34635437,0.00022622,2]
[321419186,1712178637833,-65631.0,0.00022622,2]
[321419217,1712178639584,-2629.08768,0.00022622,2]
[321419218,1712178639601,-306.79839148,0.00022622,2]
[321419219,1712178642190,-330.23499988,0.00022622,2]
[321419220,1712178642209,-815.53795955,0.00022622,2]
[321419232,1712178642460,-1643.79434727,0.00022622,2]
[321419259,1712178648509,-2766.45344518,0.00022622,2]
[321419260,1712178654606,-321.28968522,0.00021887,2]
[321419261,1712178654615,-405925.43362288,0.00022622,2]
[321419262,1712178654624,-19606.21101507,0.00022622,2]
[321419263,1712178654634,-287.44117018,0.00022622,2]
[321419264,1712178654643,-295.82660405,0.00022622,2]
[321419265,1712178654653,-939.83288273,0.00022622,2]
[321419266,1712178654662,-359.97775389,0.00022622,2]
[321419267,1712178654671,-1131.74605712,0.00022622,2]
[321419268,1712178654681,-155.0,0.00022622,2]
[321419269,1712178654690,-160.34,0.00022722,2]
[321419270,1712178654699,-165.3,0.00023126,2]
[321419271,1712178654709,-444.2816,0.00023186,2]
[321419272,1712178654718,-920.4431,0.00023186,2]
[321419273,1712178654728,-365.5388,0.00023186,2]
[321419274,1712178654737,-458.96180652,0.0002324,2]
[321419275,1712178654746,-171.35268942,0.00023251,2]
[321419276,1712178654755,-169.15,0.00023276,2]
[321419277,1712178654765,-219.26546349,0.00023284,2]
[321419278,1712178654775,-295.57981679,0.00023285,2]
[321419279,1712178654784,-808.30329148,0.00023285,2]
[321419280,1712178654793,-499.99,0.00023286,2]
[321419281,1712178654804,-564.0,0.00023286,2]
[321419282,1712178654813,-1000.0,0.00023286,2]
[321419283,1712178654822,-108168.73573666,0.00023286,2]
[321419284,1712178655319,-284.45000146,0.00023286,2]
[321419285,1712178655331,-510.78,0.00023286,2]
[321419286,1712178655343,-2250.16259704,0.00023286,2]
[321419287,1712178774160,1000.0,0.00040118,120]
[321419288,1712178823135,212.20521702,0.00029878,30]
[321419289,1712178827106,167.01357354,0.00040118,33]
[321419290,1712178942476,806.0,0.00040104,30]
[321419291,1712178960322,542.2,0.00020753,2]
[321419292,1712179224910,386.365541,0.0004,120]
[321419293,1712179349902,750.0,0.00021,3]
[321419294,1712179350979,800.0,0.00023,3]
[321419295,1712179428225,167.01357354,0.00040104,33]
[321419296,1712179455220,515.09,0.00020122,2]
[321419297,1712179462672,495.0,0.00040104,30]
[321419298,1712179541961,806.0,0.00040104,30]
[321419302,1712179831708,-1289.54111803,0.00021429,2]
[321419304,1712179831718,-455.06134325,0.0002143,2]
[321419305,1712179831727,-2347.06885895,0.0002143,2]
[321419306,1712179831737,-2142.85389686,0.00021431,2]
[321419307,1712179831746,-3368.68646986,0.00021432,2]
[321419308,1712179831888,-9188.22157441,0.00021432,2]
[321419315,1712179837744,-1949.69028041,0.00021432,2]
[321419316,1712179837962,-8233.53284393,0.00021432,2]
[321419317,1712179837971,-1264.40619677,0.00021489,2]
[321419318,1712179837981,-1000.0,0.0002187,2]
[321419319,1712179837990,-485.41,0.00021963,2]
[321419320,1712179838000,-97.13617462,0.00022017,2]
[321419331,1712179840355,-247.03382538,0.00022017,2]
[321419332,1712179840364,-47.24756259,0.00022059,2]
[321419333,1712179840402,-298.02,0.00022059,2]
[321419355,1712179842710,-1476.51243741,0.00022059,2]
[321419357,1712179842719,-195.35,0.0002206,2]
[321419359,1712179842729,-1000.0,0.0002209,2]
[321419361,1712179842738,-1000.0,0.0002209,2]
[321419363,1712179842747,-1000.0,0.0002231,2]
[321419365,1712179842757,-515.09,0.00022386,2]
[321419367,1712179842766,-17447.33,0.00022388,2]
[321419369,1712179842775,-1000.0,0.0002252,2]
[321419370,1712179842784,-173.86,0.00022539,2]
[321419372,1712179842793,-655.83,0.00022544,2]
[321419373,1712179842803,-610.24616245,0.00022559,2]
[321419374,1712179842812,-263.53,0.00022598,2]
[321419375,1712179842821,-352.22640014,0.0002263,2]
[321419376,1712179842885,-0.00798011,0.0002263,2]
[321419442,1712179846015,-0.01852261,0.0002263,2]
[321419444,1712179929268,477.36,0.00020408,2]
[321419445,1712180023548,212.20521702,0.0002739,30]
[321419446,1712180146244,806.0,0.00040097,30]
[321419448,1712180413663,25000.0,0.00040097,30]
[321419449,1712180418508,25000.0,0.00040097,30]
[321419450,1712180449085,453.49,0.00020076,2]
[321419451,1712180496964,25000.0,0.00040102,30]
[321419453,1712180744722,807.0,0.00040102,30]
[321419454,1712180766715,25000.0,0.00040102,30]
[321419455,1712180772966,25000.0,0.00040102,30]
[321419456,1712180798884,25000.0,0.00040102,30]
[321419457,1712180812845,25000.0,0.00040102,30]
[321419458,1712180820444,25000.0,0.00040102,30]
[321419459,1712180843599,25000.0,0.00040102,30]
[321419460,1712180856236,25000.0,0.00040102,30]
[321419461,1712180893405,25000.0,0.00040102,30]
[321419462,1712180903421,25000.0,0.00040102,30]
[321419463,1712180932807,25000.0,0.00040102,30]
[321419464,1712180950517,25000.0,0.00040102,30]
[321419465,1712180963192,25000.0,0.00040102,30]
[321419466,1712180980914,25000.0,0.00040102,30]
[321419467,1712181014834,25000.0,0.00040102,30]
[321419468,1712181028863,25000.0,0.00040102,30]
[321419541,1712181037950,-455.06134325,0.00021789,2]
[321419542,1712181037960,-5958.10089373,0.00021789,2]
[321419543,1712181037970,-2131.46002983,0.0002179,2]
[321419544,1712181038061,-690.57918342,0.0002179,2]
[321419545,1712181038175,-3488.79,0.0002179,2]
[321419548,1712181042152,15263.44477575,0.00040102,30]
[321419565,1712181159505,750.0,0.00021,3]
[321419566,1712181160649,800.0,0.00023,3]
[321419567,1712181179280,430.81,0.0001984,2]
[321419568,1712181234610,5569.39698243,0.0002,2]
[321419569,1712181236932,1649.09165671,0.000181,2]
[321419570,1712181268676,4901.09249241,0.00015,2]
[321419573,1712181360834,3001.76631963,0.00015,2]
[321419574,1712181360951,4423.041141,0.00015,2]
[321419575,1712181362865,260.73643222,0.00015,2]
[321419576,1712181363382,214.86790518,0.00015,2]
[321419577,1712181364720,305.95151618,0.00015,2]
[321419578,1712181364947,1519.8199475,0.00021,2]
[321419579,1712181367111,222.63620183,0.00015,2]
[321419580,1712181367319,297.03464584,0.00015,2]
[321419581,1712181369792,291.82638217,0.00015,2]
[321419582,1712181383476,219.61328057,0.00018,2]
[321419583,1712181385783,291.82638217,0.00015,2]
[321419584,1712181386767,488473.64719136,0.00015,2]
[321419585,1712181386968,302.01914611,0.0002,2]
[321419586,1712181388598,363.30728316,0.00015,2]
[321419587,1712181390923,24598.80821803,0.00015,2]
[321419588,1712181393162,939.83288273,0.00015,2]
[321419589,1712181396226,180.81117582,0.00015,2]
[321419590,1712181396328,19606.21101507,0.00015,2]
[321419591,1712181396523,155.17496633,0.00015,2]
[321419592,1712181398121,789.90876518,0.00015,2]
[321419593,1712181398354,631.90078405,0.00015,2]
[321419594,1712181402690,185.45434757,0.00015,2]
[321419595,1712181405779,155.42509142,0.00015,2]
[321419596,1712181444642,155.0,0.00015,2]
[321419597,1712181446976,1400.86830653,0.00015,2]
[321419598,1712181447098,1050.0,0.00015,2]
[321419599,1712181449797,287.53386216,0.00015,2]
[321419600,1712181450338,3981.38105071,0.00015,2]
[321419601,1712181450761,19611.43859474,0.00015,2]
[321419602,1712181452843,101805.04787796,0.00015,2]
[321419603,1712181453398,155.0,0.00015,2]
[321419604,1712181458709,155.16822264,0.00015,2]
[321419605,1712181464882,2205.64059129,0.00021,2]
[321419606,1712181466766,556.29998897,0.00015,2]
[321419607,1712181467236,863.44420511,0.00015,2]
[321419608,1712181469266,199.94386229,0.00015,2]
[321419609,1712181470326,407.19894876,0.0001455,2]
[321419610,1712181471078,324.40632926,0.00015,2]
[321419611,1712181473949,156.00915475,0.00015,2]
[321419612,1712181476807,200.0,0.00020895,2]
[321419613,1712181477821,524.62106483,0.00014999,2]
[321419614,1712181479078,511.55591866,0.00020271,2]
[321419615,1712181479120,768.42044473,0.00015,2]
[321419616,1712181479547,950.86224971,0.0001425,2]
[321419617,1712181482894,2296.23880014,0.00021,2]
[321419618,1712181488163,449.14958006,0.00020057,2]
[321419619,1712181488998,356.32506237,0.00015,2]
[321419620,1712181490781,921731.30574266,0.00015,2]
[321419621,1712181490963,18232.18065444,0.00015,2]
[321419622,1712181490990,24217.58724731,0.00015,2]
[321419623,1712181495887,176.64,0.00020532,2]
[321419624,1712181499450,200.0,0.00020513,2]
[321419625,1712181499541,1107.85,0.00020677,2]
[321419626,1712181501522,352.80863661,0.0001425,2]
[321419627,1712181504984,1001.12324668,0.00021,2]
[321419628,1712181510787,921731.30574266,0.00015,2]
[321419629,1712181528792,28856.86980029,0.00021,2]
[321419630,1712181532319,151.040406,0.00023,3]
[321419631,1712181535439,156.62444705,0.00018909,2]
[321419632,1712181538632,151.040406,0.00023,3]
[321419633,1712181539752,151.040406,0.00023,3]
[321419634,1712181540640,151.040406,0.00023,3]
[321419635,1712181541051,723.25856542,0.00018909,2]
[321419636,1712181541504,151.040406,0.00023,3]
[321419637,1712181542421,151.040406,0.00023,3]
[321419638,1712181543181,151.040406,0.00023,3]
[321419639,1712181544147,151.040406,0.00023,3]
[321419640,1712181545034,151.040406,0.00023,3]
[321419641,1712181545690,275.34,0.0002078,2]
[321419642,1712181545892,151.040406,0.00023,3]
[321419643,1712181548801,7476.56281696,0.00021,2]
[321419644,1712181551001,367.50610943,0.00021,2]
[321419645,1712181551555,127461.36595445,0.00020913,2]
[321419646,1712181556338,6829.1,0.00020973,2]
[321419647,1712181562799,3567.2724208,0.00021,2]
[321419648,1712181565771,382.09,0.00020899,2]
[321419649,1712181566753,4232.46099281,0.00021,2]
[321419650,1712181572184,156.67571045,0.00021,2]
[321419651,1712181572391,522.1815077,0.00021,2]
[321419652,1712181572748,163.92691314,0.00021,2]
[321419653,1712181573024,155.0,0.00021,2]
[321419654,1712181573342,3071.96048349,0.00021,2]
[321419655,1712181573627,10534.28692559,0.00021,2]
[321419656,1712181573670,2246.65660745,0.00021,2]
[321419657,1712181573909,206.03363681,0.00021,2]
[321419658,1712181576142,155.0,0.00021,2]
[321419659,1712181576176,165.5544226,0.00021,2]